fUST/lending_fUST_20250719
["ID","MTS","AMOUNT","RATE_DAILY","PERIOD"]
[373301700,1752935440734,-675.49,0.00018505,2]
[373301701,1752935440744,-460.0,0.00018506,2]
[373301702,1752935440753,-460.0,0.00018506,2]
[373301703,1752935440763,-511.21,0.00018506,2]
[373301704,1752935440772,-460.0,0.00018506,2]
[373301705,1752935440782,-460.0,0.00018506,2]
[373301706,1752935440950,-460.0,0.00018506,2]
[373301707,1752935440961,-460.0,0.00018507,2]
[373301708,1752935440971,-460.0,0.00018507,2]
[373301709,1752935440980,-460.0,0.00018507,2]
[373301710,1752935440990,-460.0,0.00018507,2]
[373301711,1752935441000,-511.27,0.00018507,2]
[373301712,1752935441009,-460.0,0.00018507,2]
[373301713,1752935441019,-245.0,0.00018508,2]
[373301714,1752935441028,-711.0,0.00018508,2]
[373301715,1752935441038,-173.44796763,0.00018508,2]
[373301716,1752935441048,-460.0,0.00018508,2]
[373301717,1752935441059,-460.0,0.00018508,2]
[373301718,1752935441068,-460.0,0.00018509,2]
[373301719,1752935441078,-708.0,0.0001851,2]
[373301720,1752935441087,-201.27366079,0.0001851,2]
[373301721,1752935441097,-525.83049785,0.00018534,2]
[373301722,1752935441106,-160.0,0.00018534,2]
[373301723,1752935441116,-839.454303,0.00018534,2]
[373301724,1752935441127,-12612.80205064,0.00018534,2]
[373301725,1752935441137,-230.94145789,0.00018534,2]
[373301726,1752935441146,-160.0,0.00018534,2]
[373301727,1752935441155,-215.67360783,0.00018534,2]
[373301728,1752935441164,-160.0,0.00018534,2]
[373301729,1752935441175,-214.52603969,0.00018534,2]
[373301730,1752935441183,-476.34170116,0.00018535,2]
[373301731,1752935441193,-160.0,0.00018535,2]
[373301732,1752935441205,-160.0,0.00018535,2]
[373301733,1752935441215,-420.0,0.00018712,2]
[373301734,1752935441224,-460.0,0.00018779,2]
[373301735,1752935441233,-675.49,0.00018779,2]
[373301736,1752935441242,-460.0,0.0001878,2]
[373301737,1752935441251,-460.0,0.0001878,2]
[373301738,1752935441259,-511.21,0.0001878,2]
[373301739,1752935441268,-460.0,0.0001878,2]
[373301740,1752935441276,-184.159597,0.0001878,2]
[373301741,1752935441284,-441.61648344,0.0001878,2]
[373301742,1752935441292,-460.0,0.00018781,2]
[373301743,1752935441304,-460.0,0.00018781,2]
[373301744,1752935441313,-460.0,0.00018781,2]
[373301745,1752935441323,-460.0,0.00018781,2]
[373301746,1752935441333,-511.27,0.00018781,2]
[373301747,1752935441343,-460.0,0.00018781,2]
[373301748,1752935441352,-711.0,0.00018782,2]
[373301749,1752935441362,-460.0,0.00018782,2]
[373301750,1752935441371,-460.0,0.00018782,2]
[373301751,1752935441383,-460.0,0.00018783,2]
[373301752,1752935441392,-708.0,0.00018784,2]
[373301753,1752935441401,-1595.64041491,0.000189,2]
[373301754,1752935441411,-3502.23919847,0.000189,2]
[373301755,1752935441420,-460.0,0.00019053,2]
[373301756,1752935441430,-675.49,0.00019053,2]
[373301757,1752935441439,-460.0,0.00019054,2]
[373301758,1752935441448,-460.0,0.00019054,2]
[373301759,1752935441458,-511.21,0.00019054,2]
[373301760,1752935441468,-460.0,0.00019054,2]
[373301761,1752935441477,-460.0,0.00019055,2]
[373301762,1752935441487,-460.0,0.00019055,2]
[373301763,1752935441497,-460.0,0.00019055,2]
[373301764,1752935441508,-511.27,0.00019055,2]
[373301765,1752935441518,-460.0,0.00019055,2]
[373301766,1752935441528,-711.0,0.00019056,2]
[373301767,1752935441537,-460.0,0.00019056,2]
[373301768,1752935441547,-460.0,0.00019056,2]
[373301769,1752935441557,-460.0,0.00019057,2]
[373301770,1752935441566,-708.0,0.00019058,2]
[373301771,1752935441575,-3502.23919822,0.00019141,2]
[373301772,1752935441585,-248.020575,0.00019178,2]
[373301773,1752935441594,-666.0,0.00019178,2]
[373301774,1752935441604,-191.12131009,0.00019227,2]
[373301775,1752935441614,-2526.68355042,0.00019228,2]
[373301776,1752935441623,-207.4,0.00019273,2]
[373301777,1752935441635,-324627.3080919,0.000193,2]
[373301778,1752935441644,-460.0,0.00019327,2]
[373301779,1752935441654,-675.49,0.00019327,2]
[373301780,1752935441664,-460.0,0.00019328,2]
[373301781,1752935441674,-460.0,0.00019328,2]
[373301782,1752935441683,-511.21,0.00019328,2]
[373301783,1752935441693,-460.0,0.00019328,2]
[373301784,1752935441703,-160.0,0.00019328,2]
[373301785,1752935441713,-460.0,0.00019329,2]
[373301786,1752935441723,-158.52213994,0.00019329,2]
[373301787,1752935441732,-460.0,0.00019329,2]
[373301788,1752935441742,-511.27,0.00019329,2]
[373301789,1752935441752,-460.0,0.00019329,2]
[373301790,1752935441761,-711.0,0.0001933,2]
[373301791,1752935441771,-460.0,0.0001933,2]
[373301792,1752935441780,-460.0,0.0001933,2]
[373301793,1752935441790,-460.0,0.00019331,2]
[373301794,1752935441800,-708.0,0.00019332,2]
[373301795,1752935441810,-3502.23919822,0.00019383,2]
[373301796,1752935441820,-500.0,0.0001942,2]
[373301797,1752935441829,-460.0,0.00019601,2]
[373301798,1752935441839,-675.49,0.00019601,2]
[373301799,1752935441848,-460.0,0.00019602,2]
[373301800,1752935441858,-460.0,0.00019602,2]
[373301801,1752935441869,-511.21,0.00019602,2]
[373301802,1752935441883,-460.0,0.00019602,2]
[373301803,1752935441894,-460.0,0.00019603,2]
[373301804,1752935441904,-460.0,0.00019603,2]
[373301805,1752935441914,-511.27,0.00019603,2]
[373301806,1752935441925,-460.0,0.00019603,2]
[373301807,1752935441935,-711.0,0.00019604,2]
[373301808,1752935441946,-460.0,0.00019604,2]
[373301809,1752935441957,-460.0,0.00019604,2]
[373301810,1752935441967,-259.33486079,0.00019605,2]
[373301811,1752935441978,-708.0,0.00019606,2]
[373301812,1752935441987,-3502.23919822,0.00019624,2]
[373301813,1752935441997,-3502.23919822,0.00019866,2]
[373301814,1752935442006,-460.0,0.00019875,2]
[373301815,1752935442015,-675.49,0.00019875,2]
[373301816,1752935442025,-583.90897764,0.00019876,2]
[373301817,1752935442035,-460.0,0.00019876,2]
[373301818,1752935442045,-511.21,0.00019876,2]
[373301819,1752935442054,-460.0,0.00019876,2]
[373301820,1752935442064,-260.0,0.00019876,2]
[373301821,1752935442073,-460.0,0.00019877,2]
[373301822,1752935442083,-460.0,0.00019877,2]
[373301823,1752935442092,-511.27,0.00019877,2]
[373301824,1752935442101,-460.0,0.00019877,2]
[373301825,1752935442112,-711.0,0.00019878,2]
[373301826,1752935442122,-460.0,0.00019878,2]
[373301827,1752935442134,-460.0,0.00019878,2]
[373301828,1752935442143,-708.0,0.0001988,2]
[373301829,1752935442153,-191.12131005,0.00019895,2]
[373301830,1752935442164,-500.0,0.00019973,2]
[373301831,1752935442174,-500.0,0.00019973,2]
[373301832,1752935442184,-348.63922981,0.00019973,2]
[373301833,1752935442194,-11230.48444009,0.0002,2]
[373301834,1752935442203,-8182.36496867,0.0002,2]
[373301835,1752935442214,-3193.95892131,0.0002,2]
[373301836,1752935442223,-362.6568148,0.0002,2]
[373301837,1752935442233,-71504.53584913,0.0002,2]
[373301838,1752935442242,-71682.65200165,0.0002,2]
[373301839,1752935442252,-3502.23919822,0.00020107,2]
[373301840,1752935442262,-460.0,0.00020149,2]
[373301842,1752935442271,-675.49,0.00020149,2]
[373301844,1752935442281,-460.0,0.0002015,2]
[373301845,1752935442291,-511.21,0.0002015,2]
[373301846,1752935442301,-460.0,0.0002015,2]
[373301848,1752935442310,-460.0,0.00020151,2]
[373301849,1752935442320,-460.0,0.00020151,2]
[373301850,1752935442329,-511.27,0.00020151,2]
[373301851,1752935442338,-460.0,0.00020151,2]
[373301852,1752935442348,-711.0,0.00020152,2]
[373301853,1752935442358,-460.0,0.00020152,2]
[373301854,1752935442367,-460.0,0.00020152,2]
[373301855,1752935442380,-708.0,0.00020154,2]
[373301856,1752935442391,-420.670908,0.00020187,2]
[373301857,1752935442401,-1047.52961949,0.00020211,2]
[373301858,1752935442410,-3502.23919822,0.00020348,3]
[373301859,1752935442420,-460.0,0.00020423,2]
[373301860,1752935442430,-675.49,0.00020423,2]
[373301861,1752935442439,-460.0,0.00020424,2]
[373301862,1752935442449,-511.21,0.00020424,2]
[373301863,1752935442458,-460.0,0.00020424,2]
[373301864,1752935442468,-360.0,0.00020424,2]
[373301866,1752935442478,-476.00279391,0.00020425,2]
[373301867,1752935442488,-460.0,0.00020425,2]
[373301869,1752935442498,-511.27,0.00020425,2]
[373301870,1752935442508,-460.0,0.00020425,2]
[373301871,1752935442518,-711.0,0.00020426,2]
[373301872,1752935442528,-460.0,0.00020426,2]
[373301873,1752935442538,-460.0,0.00020426,2]
[373301874,1752935442548,-708.0,0.00020428,2]
[373301875,1752935442557,-9292.58942053,0.000205,2]
[373301876,1752935442566,-500.0,0.00020516,2]
[373301877,1752935442576,-1000.0,0.00020521,2]
[373301878,1752935442585,-1000.0,0.00020521,2]
[373301880,1752935442595,-500.0,0.00020547,2]
[373301882,1752935442604,-500.0,0.00020547,2]
[373301884,1752935442613,-500.0,0.00020547,2]
[373301886,1752935442623,-500.0,0.00020547,2]
[373301888,1752935442634,-500.0,0.00020547,2]
[373301890,1752935442644,-500.0,0.00020547,2]
[373301892,1752935442653,-500.0,0.00020547,2]
[373301894,1752935442663,-500.0,0.00020547,2]
[373301896,1752935442673,-500.0,0.00020547,2]
[373301898,1752935442681,-500.0,0.00020547,2]
[373301900,1752935442691,-500.0,0.00020547,2]
[373301902,1752935442700,-500.0,0.00020547,2]
[373301904,1752935442710,-500.0,0.00020547,2]
[373301906,1752935442719,-188.73009265,0.00020564,2]
[373301918,1752935442823,-2.3912174,0.00020564,2]
[373301920,1752935442832,-1768.3587826,0.0002059,3]
[373302066,1752935694849,357.52585,0.00016137,2]
[373302068,1752935798671,-366.54547154,0.00016623,2]
[373302069,1752935798693,-220.4386341,0.00017037,2]
[373302070,1752935798716,-1041.865,0.00017037,2]
[373302071,1752935798738,-460.0,0.00017135,2]
[373302072,1752935798758,-460.0,0.00017135,2]
[373302073,1752935798778,-460.0,0.00017135,2]
[373302074,1752935798798,-460.0,0.00017135,2]
[373302075,1752935798818,-461.97349255,0.00017135,2]
[373302076,1752935798838,-460.0,0.00017135,2]
[373302077,1752935798856,-549.73018254,0.00017135,2]
[373302078,1752935798874,-460.0,0.00017135,2]
[373302079,1752935798893,-460.0,0.00017135,2]
[373302080,1752935798910,-460.0,0.00017135,2]
[373302081,1752935798931,-460.0,0.00017135,2]
[373302082,1752935798950,-460.0,0.00017135,2]
[373302083,1752935798973,-460.0,0.00017135,2]
[373302084,1752935798991,-460.0,0.00017135,2]
[373302085,1752935799012,-460.0,0.00017135,2]
[373302086,1752935799037,-460.0,0.00017135,2]
[373302087,1752935799055,-460.0,0.00017135,2]
[373302088,1752935799077,-460.0,0.00017135,2]
[373302089,1752935799097,-460.0,0.00017135,2]
[373302090,1752935799117,-460.0,0.00017135,2]
[373302091,1752935799143,-460.0,0.00017135,2]
[373302092,1752935799166,-460.0,0.00017135,2]
[373302093,1752935799188,-460.0,0.00017135,2]
[373302094,1752935799209,-178.81779799,0.00017135,2]
[373302095,1752935799231,-460.0,0.00017135,2]
[373302096,1752935799253,-460.0,0.00017135,2]
[373302097,1752935799276,-460.0,0.00017135,2]
[373302098,1752935799297,-460.0,0.00017135,2]
[373302099,1752935799319,-460.0,0.00017135,2]
[373302100,1752935799339,-460.0,0.00017135,2]
[373302101,1752935799361,-466.05106883,0.00017135,2]
[373302102,1752935799387,-460.0,0.00017135,2]
[373302103,1752935799408,-460.0,0.00017135,2]
[373302104,1752935799430,-460.0,0.00017135,2]
[373302105,1752935799452,-460.0,0.00017135,2]
[373302106,1752935799473,-202.31429024,0.00017135,2]
[373302107,1752935799497,-234.21922923,0.00017135,2]
[373302108,1752935799519,-460.0,0.00017135,2]
[373302109,1752935799542,-460.0,0.00017135,2]
[373302110,1752935799564,-1108.07,0.00017135,2]
[373302111,1752935799588,-460.0,0.00017135,2]
[373302112,1752935799610,-460.0,0.00017135,2]
[373302113,1752935799633,-460.0,0.00017135,2]
[373302114,1752935799655,-460.0,0.00017135,2]
[373302115,1752935799679,-460.0,0.00017135,2]
[373302116,1752935799699,-460.0,0.00017135,2]
[373302117,1752935799721,-460.0,0.00017135,2]
[373302118,1752935799741,-460.0,0.00017135,2]
[373302119,1752935799763,-26309.97483298,0.00017135,2]
[373302121,1752935916527,423.00797,0.00013699,2]
[373302123,1752935988378,-219.92728292,0.00016621,2]
[373302124,1752935988401,-253.66114312,0.00017036,2]
[373302125,1752935988424,-300.0,0.00017134,2]
[373302126,1752935988446,-460.0,0.00017135,2]
[373302127,1752935988469,-444.56,0.00017135,2]
[373302128,1752935988492,-460.0,0.00017135,2]
[373302129,1752935988513,-460.0,0.00017135,2]
[373302130,1752935988536,-460.0,0.00017135,2]
[373302131,1752935988557,-389.74232862,0.00017135,2]
[373302132,1752935988580,-460.0,0.00017135,2]
[373302133,1752935988602,-460.0,0.00017135,2]
[373302134,1752935988625,-460.0,0.00017135,2]
[373302135,1752935988647,-460.0,0.00017135,2]
[373302136,1752935988668,-460.0,0.00017135,2]
[373302137,1752935988689,-460.0,0.00017135,2]
[373302138,1752935988710,-460.0,0.00017135,2]
[373302139,1752935988731,-460.0,0.00017135,2]
[373302140,1752935988752,-460.0,0.00017135,2]
[373302141,1752935988776,-460.0,0.00017135,2]
[373302142,1752935988798,-460.0,0.00017135,2]
[373302143,1752935988820,-460.0,0.00017135,2]
[373302144,1752935988841,-460.0,0.00017135,2]
[373302145,1752935988865,-1082.7,0.00017135,2]
[373302146,1752935988887,-460.0,0.00017135,2]
[373302147,1752935988908,-460.0,0.00017135,2]
[373302148,1752935988932,-460.0,0.00017135,2]
[373302149,1752935988953,-3109.40924534,0.00017135,2]
[373302150,1752936027194,-460.0,0.00017135,2]
[373302151,1752936027220,-460.0,0.00017135,2]
[373302152,1752936027244,-526.47311081,0.00017135,2]
[373302153,1752936027427,-8553.52688919,0.00017135,2]
[373302154,1752936048035,1759.38673259,0.00025327,120]
[373302161,1752936550190,5000.0,0.0001833,6]
[373302162,1752936566305,5000.0,0.0001833,6]
[373302164,1752936577513,24900.0,0.00016137,2]
[373302274,1752936638107,-5000.0,0.00016962,2]
[373302276,1752936638116,-583.33,0.00017133,2]
[373302277,1752936638126,-460.0,0.00017133,2]
[373302279,1752936638137,-579.87990335,0.00017133,2]
[373302281,1752936638146,-460.0,0.00017133,2]
[373302283,1752936638157,-460.0,0.00017133,2]
[373302285,1752936638166,-269.37691507,0.00017133,2]
[373302287,1752936638175,-460.0,0.00017133,2]
[373302288,1752936638184,-460.0,0.00017133,2]
[373302289,1752936638195,-384.83249939,0.00017133,2]
[373302290,1752936638204,-460.0,0.00017133,2]
[373302291,1752936638214,-460.0,0.00017133,2]
[373302292,1752936638223,-460.0,0.00017133,2]
[373302293,1752936638233,-229.03170315,0.00017133,2]
[373302294,1752936638242,-448.29025465,0.00017133,2]
[373302295,1752936638254,-11.7923692,0.00017133,2]
[373302296,1752936638263,-1755.5076308,0.00017134,2]
[373302297,1752936638275,-10271.58140169,0.00017134,2]
[373302298,1752936638284,-460.0,0.00017134,2]
[373302299,1752936638294,-460.0,0.00017134,2]
[373302300,1752936638304,-460.0,0.00017134,2]
[373302301,1752936638314,-460.0,0.00017134,2]
[373302302,1752936638324,-460.0,0.00017134,2]
[373302303,1752936638334,-199.14,0.00017134,2]
[373302304,1752936638344,-460.0,0.00017134,2]
[373302305,1752936638354,-460.0,0.00017134,2]
[373302306,1752936638363,-460.0,0.00017134,2]
[373302307,1752936638373,-460.0,0.00017134,2]
[373302308,1752936638384,-1761.12,0.00017134,2]
[373302309,1752936638393,-460.0,0.00017134,2]
[373302311,1752936638403,-460.0,0.00017134,2]
[373302313,1752936638412,-314.88342889,0.00017134,2]
[373302315,1752936638422,-460.0,0.00017134,2]
[373302317,1752936638431,-460.0,0.00017134,2]
[373302318,1752936638440,-460.0,0.00017134,2]
[373302319,1752936638450,-460.0,0.00017134,2]
[373302320,1752936638460,-460.0,0.00017135,2]
[373302321,1752936638470,-460.0,0.00017135,2]
[373302322,1752936638480,-460.0,0.00017135,2]
[373302323,1752936638490,-460.0,0.00017135,2]
[373302324,1752936638500,-460.0,0.00017135,2]
[373302325,1752936638509,-309.85629712,0.00017135,2]
[373302326,1752936638519,-460.0,0.00017135,2]
[373302327,1752936638528,-460.0,0.00017135,2]
[373302328,1752936638537,-567.08503556,0.00017135,2]
[373302329,1752936638547,-460.0,0.00017135,2]
[373302330,1752936638556,-460.0,0.00017135,2]
[373302331,1752936638567,-460.0,0.00017135,2]
[373302332,1752936638577,-460.0,0.00017135,2]
[373302333,1752936638586,-432.20930398,0.00017135,2]
[373302334,1752936638595,-460.0,0.00017135,2]
[373302335,1752936638605,-460.0,0.00017135,2]
[373302336,1752936638615,-460.0,0.00017135,2]
[373302337,1752936638624,-460.0,0.00017135,2]
[373302338,1752936638636,-460.0,0.00017135,2]
[373302339,1752936638646,-460.0,0.00017135,2]
[373302340,1752936638656,-460.0,0.00017135,2]
[373302341,1752936638665,-460.0,0.00017135,2]
[373302342,1752936638675,-460.0,0.00017135,2]
[373302343,1752936638685,-277.40662346,0.00017135,2]
[373302344,1752936638694,-460.0,0.00017135,2]
[373302345,1752936638704,-460.0,0.00017135,2]
[373302346,1752936638714,-460.0,0.00017135,2]
[373302347,1752936638724,-460.0,0.00017135,2]
[373302348,1752936638734,-460.0,0.00017135,2]
[373302349,1752936638743,-460.0,0.00017135,2]
[373302350,1752936638753,-460.0,0.00017135,2]
[373302351,1752936638762,-460.0,0.00017135,2]
[373302352,1752936638772,-462.68867771,0.00017135,2]
[373302353,1752936638782,-460.0,0.00017135,2]
[373302354,1752936638793,-460.0,0.00017135,2]
[373302355,1752936638803,-460.0,0.00017135,2]
[373302356,1752936638813,-460.0,0.00017135,2]
[373302357,1752936638823,-188.29,0.00017135,2]
[373302358,1752936638832,-460.0,0.00017135,2]
[373302359,1752936638842,-711.99,0.00017135,2]
[373302360,1752936638851,-460.0,0.00017135,2]
[373302361,1752936638861,-460.0,0.00017135,2]
[373302362,1752936638879,-462.61955488,0.00017135,2]
[373302363,1752936638891,-460.0,0.00017135,2]
[373302364,1752936638900,-436.85235751,0.00017135,2]
[373302365,1752936638910,-460.0,0.00017135,2]
[373302366,1752936638920,-1093.63,0.00017135,2]
[373302367,1752936638931,-460.0,0.00017135,2]
[373302368,1752936638941,-460.0,0.00017135,2]
[373302369,1752936638950,-684.59,0.00017135,2]
[373302370,1752936638961,-460.0,0.00017135,2]
[373302371,1752936638970,-460.0,0.00017135,2]
[373302372,1752936638979,-460.0,0.00017135,2]
[373302373,1752936638989,-460.0,0.00017135,2]
[373302374,1752936638998,-460.0,0.00017135,2]
[373302375,1752936639008,-460.0,0.00017135,2]
[373302376,1752936639018,-460.0,0.00017135,2]
[373302377,1752936639028,-460.0,0.00017135,2]
[373302378,1752936639037,-460.0,0.00017135,2]
[373302379,1752936639046,-460.0,0.00017135,2]
[373302380,1752936639056,-490.35,0.00017136,2]
[373302381,1752936639065,-1168.05,0.00017136,2]
[373302382,1752936639075,-460.0,0.00017136,2]
[373302383,1752936639084,-460.0,0.00017136,2]
[373302384,1752936639093,-551.53,0.00017136,2]
[373302385,1752936639102,-460.0,0.00017136,2]
[373302386,1752936639113,-721.86,0.00017136,2]
[373302387,1752936639122,-460.0,0.00017136,2]
[373302388,1752936639133,-460.0,0.00017136,2]
[373302389,1752936639142,-374.80623903,0.00017137,2]
[373302390,1752936639152,-460.0,0.00017137,2]
[373302391,1752936639162,-460.0,0.00017137,2]
[373302392,1752936639171,-460.0,0.00017138,2]
[373302393,1752936639180,-491.14493759,0.00017138,2]
[373302394,1752936639193,-583.33,0.00017407,2]
[373302395,1752936639204,-460.0,0.00017407,2]
[373302396,1752936639214,-460.0,0.00017407,2]
[373302397,1752936639224,-460.0,0.00017408,2]
[373302398,1752936639233,-460.0,0.00017408,2]
[373302399,1752936639244,-460.0,0.00017408,2]
[373302400,1752936639253,-211.26,0.00017408,2]
[373302401,1752936639264,-1761.12,0.00017408,2]
[373302402,1752936639275,-460.0,0.00017408,2]
[373302403,1752936639285,-460.0,0.00017408,2]
[373302404,1752936639295,-460.0,0.00017408,2]
[373302405,1752936639304,-460.0,0.00017408,2]
[373302406,1752936639314,-514.45984121,0.00017409,2]
[373302407,1752936639324,-460.0,0.00017409,2]
[373302408,1752936639334,-209.96,0.00017409,2]
[373302409,1752936639344,-460.0,0.00017409,2]
[373302410,1752936639354,-526.80176444,0.00017409,2]
[373302411,1752936639364,-417.68676656,0.00017409,2]
[373302412,1752936639374,-460.0,0.00017409,2]
[373302413,1752936639385,-460.0,0.00017409,2]
[373302414,1752936639395,-460.0,0.00017409,2]
[373302415,1752936639405,-460.0,0.00017409,2]
[373302416,1752936639415,-460.0,0.00017409,2]
[373302417,1752936639425,-471.55391111,0.00017409,2]
[373302418,1752936639435,-711.99,0.00017409,2]
[373302419,1752936639445,-460.0,0.00017409,2]
[373302420,1752936639454,-232.2658635,0.00017409,2]
[373302421,1752936639464,-1093.63,0.00017409,2]
[373302422,1752936639473,-684.59,0.00017409,2]
[373302423,1752936639483,-460.0,0.00017409,2]
[373302424,1752936639492,-321.51376481,0.00017409,2]
[373302425,1752936639502,-460.0,0.00017409,2]
[373302426,1752936639511,-460.0,0.00017409,2]
[373302427,1752936639521,-460.0,0.00017409,2]
[373302428,1752936639530,-490.35,0.0001741,2]
[373302429,1752936639540,-1168.05,0.0001741,2]
[373302430,1752936639549,-460.0,0.0001741,2]
[373302431,1752936639559,-460.0,0.0001741,2]
[373302432,1752936639568,-551.53,0.0001741,2]
[373302433,1752936639578,-460.0,0.0001741,2]
[373302434,1752936639587,-721.86,0.0001741,2]
[373302435,1752936639597,-460.0,0.0001741,2]
[373302436,1752936639606,-460.0,0.0001741,2]
[373302437,1752936639616,-583.33,0.00017681,2]
[373302438,1752936639626,-460.0,0.00017681,2]
[373302439,1752936639637,-460.0,0.00017682,2]
[373302440,1752936639647,-152.06,0.00017682,2]
[373302441,1752936639658,-1761.12,0.00017682,2]
[373302442,1752936639668,-460.0,0.00017682,2]
[373302443,1752936639678,-460.0,0.00017682,2]
[373302444,1752936639688,-460.0,0.00017682,2]
[373302445,1752936639698,-460.0,0.00017682,2]
[373302446,1752936639708,-460.0,0.00017683,2]
[373302447,1752936639718,-460.0,0.00017683,2]
[373302448,1752936639727,-460.0,0.00017683,2]
[373302449,1752936639737,-711.99,0.00017683,2]
[373302450,1752936639747,-460.0,0.00017683,2]
[373302451,1752936639757,-1093.63,0.00017683,2]
[373302452,1752936639767,-684.59,0.00017683,2]
[373302454,1752936639777,-460.0,0.00017683,2]
[373302455,1752936639786,-460.0,0.00017683,2]
[373302456,1752936639796,-460.0,0.00017683,2]
[373302457,1752936639806,-490.35,0.00017684,2]
[373302458,1752936639815,-1168.05,0.00017684,2]
[373302459,1752936639825,-460.0,0.00017684,2]
[373302460,1752936639835,-460.0,0.00017684,2]
[373302461,1752936639844,-551.53,0.00017684,2]
[373302462,1752936639854,-460.0,0.00017684,2]
[373302463,1752936639863,-721.86,0.00017684,2]
[373302465,1752936639873,-460.0,0.00017684,2]
[373302466,1752936639883,-460.0,0.00017684,2]
[373302467,1752936639893,-6531.39054739,0.000179,2]
[373302468,1752936639904,-583.33,0.00017955,2]
[373302469,1752936639914,-460.0,0.00017955,2]
[373302470,1752936639923,-460.0,0.00017956,2]
[373302471,1752936639933,-1761.12,0.00017956,2]
[373302472,1752936639943,-460.0,0.00017956,2]
[373302473,1752936639953,-460.0,0.00017956,2]
[373302474,1752936639963,-337.29312359,0.00017956,2]
[373302475,1752936639974,-460.0,0.00017956,2]
[373302476,1752936639984,-460.0,0.00017957,2]
[373302477,1752936639994,-460.0,0.00017957,2]
[373302478,1752936640003,-460.0,0.00017957,2]
[373302479,1752936640013,-711.99,0.00017957,2]
[373302480,1752936640023,-460.0,0.00017957,2]
[373302481,1752936640033,-1093.63,0.00017957,2]
[373302482,1752936640043,-684.59,0.00017957,2]
[373302483,1752936640052,-460.0,0.00017957,2]
[373302484,1752936640062,-460.0,0.00017957,2]
[373302485,1752936640072,-460.0,0.00017957,2]
[373302486,1752936640081,-490.35,0.00017958,2]
[373302487,1752936640091,-1168.05,0.00017958,2]
[373302488,1752936640101,-460.0,0.00017958,2]
[373302490,1752936640111,-460.0,0.00017958,2]
[373302491,1752936640264,-551.53,0.00017958,2]
[373302492,1752936640275,-460.0,0.00017958,2]
[373302493,1752936640286,-721.86,0.00017958,2]
[373302494,1752936640297,-460.0,0.00017958,2]
[373302495,1752936640307,-440.69,0.00017958,2]
[373302496,1752936640316,-6531.39054735,0.00018176,2]
[373302497,1752936640327,-583.33,0.00018229,2]
[373302498,1752936640337,-460.0,0.00018229,2]
[373302499,1752936640347,-318.88036669,0.00018229,2]
[373302500,1752936640357,-500.0,0.00018229,2]
[373302501,1752936640366,-500.0,0.00018229,2]
[373302502,1752936640375,-212.53036701,0.00018229,2]
[373302503,1752936640389,-460.0,0.0001823,2]
[373302504,1752936640399,-1761.12,0.0001823,2]
[373302505,1752936640409,-460.0,0.0001823,2]
[373302506,1752936640418,-460.0,0.0001823,2]
[373302507,1752936640427,-460.0,0.0001823,2]